bitfinex/quotes_BTCUSD_20230108
["timestamp","ask_amount","ask_price","bid_price","bid_amount"]
[1673178377941,2.01305154,16959.0,16958.0,0.85626189]
[1673178378200,2.01305154,16959.0,16958.0,1.22424689]
[1673178378450,2.01305154,16959.0,16958.0,0.85626189]
[1673178378987,2.01305154,16959.0,16958.0,0.71945845]
[1673178380567,0.83368454,16959.0,16958.0,0.71945845]
[1673178380818,1.42336354,16959.0,16958.0,0.71945845]
[1673178381872,2.01305154,16959.0,16958.0,0.71945845]
[1673178382750,2.01305154,16959.0,16958.0,0.71939184]
[1673178383474,2.01305154,16959.0,16958.0,0.85618862]
[1673178384590,2.01298795,16959.0,16958.0,0.85618862]
[1673178386538,2.01298795,16959.0,16958.0,0.71939184]
[1673178390860,2.01298795,16959.0,16958.0,0.71895993]
[1673178401695,1.71298795,16959.0,16958.0,0.71895993]
[1673178403713,0.06302395,16959.0,16958.0,1.19968606]
[1673178403961,0.589679,16959.0,16958.0,1.19968606]
[1673178404214,0.589679,16959.0,16958.0,1.38451226]
[1673178405482,0.7420762,16960.0,16958.0,1.38451226]
[1673178407552,0.7420762,16960.0,16958.0,1.37551226]
[1673178407845,0.7420762,16960.0,16958.0,1.38551226]
[1673178408102,1.3316982,16960.0,16958.0,1.38551226]
[1673178408633,1.3316982,16960.0,16959.0,0.13855123]
[1673178408888,1.6316982,16960.0,16959.0,0.13855123]
[1673178409626,2.16285929,16960.0,16959.0,0.13855123]
[1673178411222,2.19827598,16960.0,16959.0,0.13855123]
[1673178411488,2.19827598,16960.0,16959.0,0.14855123]
[1673178415773,1.66711489,16960.0,16959.0,0.14855123]
[1673178417039,1.66711489,16960.0,16959.0,0.01]
[1673178425779,2.19827949,16960.0,16959.0,0.01]
[1673178428026,2.19827949,16960.0,16959.0,0.00992953]
[1673178429754,2.09827949,16960.0,16959.0,0.00992953]
[1673178433732,2.09827949,16960.0,16959.0,0.11388072]
[1673178433956,2.09827949,16960.0,16959.0,0.27055054]
[1673178439883,1.56711489,16960.0,16959.0,0.27055054]
[1673178440385,2.098305,16960.0,16959.0,0.27055054]
[1673178440642,1.56711489,16960.0,16959.0,0.27055054]
[1673178448020,1.5316982,16960.0,16959.0,0.27055054]
[1673178448784,1.5316982,16960.0,16959.0,0.16659935]
[1673178450042,1.5316982,16960.0,16959.0,0.16649202]
[1673178450794,1.5316982,16960.0,16959.0,0.27087609]
[1673178451278,1.5316982,16960.0,16959.0,0.27044421]
[1673178454246,1.56711489,16960.0,16959.0,0.27044421]
[1673178455743,1.56711489,16960.0,16959.0,0.16649202]
[1673178456915,1.56711489,16960.0,16959.0,0.27655905]
[1673178460190,1.56711489,16960.0,16959.0,0.11988923]
[1673178471256,1.56711489,16960.0,16959.0,0.11980915]
[1673178490911,1.5316982,16960.0,16959.0,0.11980915]
[1673178491477,1.56711489,16960.0,16959.0,0.11980915]
[1673178492508,1.5316982,16960.0,16959.0,0.11980915]
[1673178492985,1.56711489,16960.0,16959.0,0.25858919]
[1673178493737,1.5316982,16960.0,16959.0,0.25858919]
[1673178493985,1.56711489,16960.0,16959.0,0.25858919]
[1673178494454,1.56711489,16960.0,16959.0,0.25849586]
[1673178497469,1.5316982,16960.0,16959.0,0.25849586]
[1673178497965,1.56711489,16960.0,16959.0,0.25849586]
[1673178498203,1.5316982,16960.0,16959.0,0.25849586]
[1673178498937,1.56711489,16960.0,16959.0,0.25849586]
[1673178499185,1.5316982,16960.0,16959.0,0.25849586]
[1673178499445,1.56711489,16960.0,16959.0,0.25849586]
[1673178500486,1.5316982,16960.0,16959.0,0.25849586]
[1673178501747,1.56711489,16960.0,16959.0,0.62648086]
[1673178501965,1.5316982,16960.0,16959.0,0.25849586]
[1673178507837,1.5316982,16960.0,16959.0,0.11971582]
[1673178514573,1.5316982,16960.0,16959.0,0.11961654]
[1673178516689,1.56711489,16960.0,16959.0,0.11961654]
[1673178518367,2.09838566,16960.0,16959.0,0.11961654]
[1673178519630,1.56711489,16960.0,16959.0,0.11961654]
[1673178520150,2.09837706,16960.0,16959.0,0.30623674]
[1673178520840,1.56711489,16960.0,16959.0,0.11961654]
[1673178521095,2.0983764,16960.0,16959.0,0.11961654]
[1673178526019,1.5087394,16960.0,16959.0,0.78901042]
[1673178526283,1.5087394,16960.0,16959.0,0.11961654]
[1673178529616,1.5087394,16960.0,16959.0,0.12004842]
[1673178531285,1.5087394,16960.0,16959.0,0.11961654]
[1673178532983,1.5087394,16960.0,16959.0,0.12004842]
[1673178537341,1.5087394,16960.0,16959.0,0.11961654]
[1673178537816,1.5087394,16960.0,16959.0,0.1195384]
[1673178541377,1.5087394,16960.0,16959.0,0.1156294]
[1673178543943,1.47332271,16960.0,16959.0,0.29181197]
[1673178544488,1.47332271,16960.0,16959.0,0.1156294]
[1673178548562,1.47325483,16960.0,16959.0,0.1156294]
[1673178568853,1.47325483,16960.0,16959.0,0.11552496]
[1673178580036,1.47325483,16960.0,16959.0,0.5940483]
[1673178580293,1.47325483,16960.0,16959.0,0.48350996]
[1673178580570,1.47325483,16960.0,16959.0,0.32848129]
[1673178581335,1.47325483,16960.0,16959.0,0.11552496]
[1673178583611,1.47325483,16960.0,16959.0,0.11595684]
[1673178585066,1.47325483,16960.0,16959.0,0.11552496]
[1673178592463,2.06287683,16960.0,16959.0,0.11552496]
[1673178592937,2.06287683,16960.0,16959.0,0.11545458]
[1673178598818,1.53161532,16960.0,16959.0,0.11545458]
[1673178601531,1.52552932,16960.0,16959.0,0.11545458]
[1673178607144,2.78262728,16960.0,16959.0,0.11545458]
[1673178607150,3.37224928,16960.0,16959.0,0.11545458]
[1673178607406,2.74831132,16960.0,16959.0,0.11545458]
[1673178607662,3.37224928,16960.0,16959.0,0.11545458]
[1673178607917,2.78294229,16960.0,16959.0,0.11545458]
[1673178608455,3.38022291,16960.0,16959.0,0.11545458]
[1673178620904,3.28022291,16960.0,16959.0,0.11545458]
[1673178632684,2.68294229,16960.0,16959.0,0.11545458]
[1673178632951,3.27957713,16960.0,16959.0,0.11545458]
[1673178633202,2.68294229,16960.0,16959.0,0.11545458]
[1673178633446,3.27957735,16960.0,16959.0,0.11545458]
[1673178638775,2.68294229,16960.0,16959.0,0.11545458]
[1673178643056,2.68294229,16960.0,16959.0,0.11537319]
[1673178666276,2.68294229,16960.0,16959.0,0.11527242]
[1673178667372,2.6475256,16960.0,16959.0,0.11527242]
[1673178667612,2.68294229,16960.0,16959.0,0.11527242]
[1673178669669,3.09782859,16960.0,16959.0,0.11527242]
[1673178675395,2.68294229,16960.0,16959.0,0.11527242]
[1673178687076,2.68294229,16960.0,16959.0,0.11515949]
[1673178710072,2.68294229,16960.0,16959.0,0.11508935]
[1673178730970,2.68282721,16960.0,16959.0,0.11508935]
[1673178731746,2.55645279,16960.0,16959.0,0.11508935]
[1673178732222,2.05888925,16960.0,16959.0,0.11508935]
[1673178746458,2.02347256,16960.0,16959.0,0.11508935]
[1673178746975,2.05888925,16960.0,16959.0,0.11508935]
[1673178755123,2.05888925,16960.0,16959.0,0.11499092]
[1673178757078,2.05888925,16960.0,16959.0,0.00492389]
[1673178757806,2.05888925,16960.0,16959.0,0.12193321]
[1673178758472,2.55587322,16960.0,16959.0,0.12193321]
[1673178759720,2.95805261,16960.0,16959.0,0.12193321]
[1673178760676,2.55587322,16960.0,16959.0,0.12193321]
[1673178762369,2.05888925,16960.0,16959.0,0.12193321]
[1673178762838,2.5563242,16960.0,16959.0,0.12193321]
[1673178763340,2.05888925,16960.0,16959.0,0.12193321]
[1673178766849,3.48745238,16960.0,16959.0,0.02261717]
[1673178767104,3.99670632,16960.0,16956.0,0.0005]
[1673178767370,1.40482948,16959.0,16956.0,0.0005]
[1673178767660,0.59736978,16957.0,16956.0,0.0005]
[1673178767928,1.49559578,16957.0,16956.0,0.0005]
[1673178768197,1.53101247,16957.0,16956.0,0.61708018]
[1673178768462,1.53101247,16957.0,16956.0,0.0115]
[1673178769832,1.55101247,16957.0,16956.0,0.0005]
[1673178770361,2.14073847,16957.0,16956.0,0.0005]
[1673178773083,2.73046447,16957.0,16956.0,0.0005]
[1673178775151,2.73046447,16957.0,16956.0,0.61708018]
[1673178775408,2.73046447,16957.0,16956.0,0.0005]
[1673178776141,2.13309469,16957.0,16956.0,0.08485397]
[1673178776649,2.73046447,16957.0,16956.0,0.08485397]
[1673178777424,2.73046447,16957.0,16956.0,0.0005]
[1673178778351,2.13309469,16957.0,16956.0,0.0005]
[1673178778619,2.73046447,16957.0,16956.0,0.0005]
[1673178779163,2.13309469,16957.0,16956.0,0.0005]
[1673178779425,2.73046447,16957.0,16956.0,0.0005]
[1673178779890,2.13309469,16957.0,16956.0,0.0005]
[1673178782215,2.73046447,16957.0,16956.0,0.0005]
[1673178782551,2.13309469,16957.0,16956.0,0.0005]
[1673178782804,2.73046447,16957.0,16956.0,0.0005]
[1673178783072,2.13309469,16957.0,16956.0,1.18091871]
[1673178783329,2.66390263,16957.0,16956.0,0.61708018]
[1673178785432,2.13309469,16957.0,16956.0,0.61708018]
[1673178786269,2.6639087,16957.0,16956.0,0.61708018]
[1673178786780,2.13309469,16957.0,16956.0,0.61708018]
[1673178787507,2.13309469,16957.0,16956.0,0.61699265]
[1673178787783,2.13309469,16957.0,16956.0,0.7788303]
[1673178788215,2.66395301,16957.0,16956.0,0.7788303]
[1673178788474,2.62853632,16957.0,16956.0,0.7788303]
[1673178791337,2.62853632,16957.0,16956.0,0.61699265]
[1673178808090,2.62853632,16957.0,16956.0,0.47246838]
[1673178808450,2.62853632,16957.0,16956.0,0.00041247]
[1673178810354,2.62853632,16957.0,16956.0,0.00033301]
[1673178811118,2.62853632,16957.0,16956.0,0.10878385]
[1673178811914,2.62853632,16957.0,16956.0,0.21979187]
[1673178812402,2.62846737,16957.0,16956.0,0.21979187]
[1673178812650,2.62846737,16957.0,16956.0,0.69183591]
[1673178813208,2.62846737,16957.0,16956.0,0.69181804]
[1673178814468,2.6283942,16957.0,16956.0,0.69181804]
[1673178814720,2.6283942,16957.0,16956.0,0.21979187]
[1673178816748,2.6283942,16957.0,16956.0,0.69173328]
[1673178816998,2.6283942,16957.0,16956.0,1.05971828]
[1673178817506,2.6283942,16957.0,16956.0,0.94871026]
[1673178817755,2.6283942,16957.0,16956.0,0.58072526]
[1673178826187,2.6283942,16957.0,16956.0,0.94871026]
[1673178829256,2.32853632,16957.0,16956.0,0.94871026]
[1673178829520,2.62853632,16957.0,16956.0,0.94871026]
[1673178830013,2.62853632,16957.0,16956.0,1.14371092]
[1673178830526,2.097678,16957.0,16956.0,1.14371092]
[1673178831672,2.62853632,16957.0,16956.0,1.14371092]
[1673178831887,2.097678,16957.0,16956.0,1.14371092]
[1673178832152,2.62853632,16957.0,16956.0,1.14371092]
[1673178832655,2.097678,16957.0,16956.0,1.14371092]
[1673178834412,2.097678,16957.0,16956.0,0.94871026]
[1673178834652,2.097678,16957.0,16956.0,0.58072526]
[1673178835142,2.62853632,16957.0,16956.0,0.58072526]
[1673178837595,2.62853632,16957.0,16956.0,0.5806468]
[1673178838908,1.73881032,16957.0,16956.0,0.61207926]
[1673178839167,0.74736978,16960.0,16957.0,0.16989468]
[1673178839432,0.59736978,16960.0,16958.0,0.367985]
[1673178839684,0.6020535,16961.0,16958.0,0.43670547]
[1673178839943,0.79650722,16959.0,16958.0,0.67438336]
[1673178840206,0.00468372,16961.0,16958.0,0.80469047]
[1673178840502,0.00468372,16961.0,16960.0,0.6]
[1673178840752,0.00468372,16961.0,16960.0,1.5806456]
[1673178841056,0.00468372,16961.0,16960.0,1.80443405]
[1673178842319,0.05868372,16961.0,16960.0,1.80443405]
[1673178842584,0.00468372,16961.0,16960.0,2.37878931]
[1673178842817,0.05868372,16961.0,16960.0,2.38978931]
[1673178843064,0.00468372,16961.0,16960.0,2.37878931]
[1673178843306,0.50059564,16961.0,16960.0,1.77712871]
[1673178843552,0.44659564,16961.0,16960.0,2.37878931]
[1673178843803,0.80059564,16961.0,16960.0,1.77712871]
[1673178844292,0.83601233,16961.0,16960.0,1.77712871]
[1673178845803,0.83601233,16961.0,16960.0,1.55334026]
[1673178846045,0.83601233,16961.0,16960.0,1.18535526]
[1673178846539,0.83601233,16961.0,16960.0,1.55334026]
[1673178847051,0.88934324,16961.0,16960.0,1.18535526]
[1673178847344,0.71231699,16961.0,16960.0,1.36515685]
[1673178847609,1.01231699,16961.0,16960.0,1.36515685]
[1673178848114,1.18934324,16961.0,16960.0,1.36515685]
[1673178849149,1.4541582,16961.0,16960.0,1.18535526]
[1673178849393,1.01224628,16961.0,16960.0,1.18535526]
[1673178849950,1.18934324,16961.0,16960.0,1.18535526]
[1673178850182,1.45415849,16961.0,16960.0,1.18535526]
[1673178850946,1.01224657,16961.0,16960.0,1.18535526]
[1673178851737,1.01224657,16961.0,16960.0,1.36515685]
[1673178851990,1.01224657,16961.0,16960.0,1.18535526]
[1673178853018,0.71224657,16961.0,16960.0,1.18535526]
[1673178853244,0.535394,16961.0,16960.0,1.18535526]
[1673178854302,1.01224657,16961.0,16960.0,1.18535526]
[1673178854820,1.01224657,16961.0,16960.0,1.36515685]
[1673178855102,1.60183357,16961.0,16960.0,1.36515685]
[1673178856151,1.60183357,16961.0,16960.0,1.18535526]
[1673178865133,2.04374549,16961.0,16960.0,1.18535526]
[1673178866516,1.77893024,16961.0,16960.0,1.18535526]
[1673178871974,1.77881625,16961.0,16960.0,1.18535526]
[1673178872230,1.42559933,16961.0,16960.0,1.18535526]
[1673178872486,1.42559933,16961.0,16960.0,1.36515685]
[1673178876575,0.98368741,16961.0,16960.0,1.36515685]
[1673178878601,1.51397006,16961.0,16960.0,1.36515685]
[1673178880279,1.51397006,16961.0,16960.0,1.18535526]
[1673178884267,1.51397006,16961.0,16960.0,0.611]
[1673178884773,1.51397006,16961.0,16960.0,1.20607191]
[1673178899926,2.10355706,16961.0,16960.0,1.20607191]
[1673178900448,1.57327441,16961.0,16960.0,1.20607191]
[1673178900698,1.57327441,16961.0,16960.0,1.38146634]
[1673178901258,1.57327441,16961.0,16960.0,1.74945134]
[1673178901550,1.57327441,16961.0,16960.0,1.74337834]
[1673178901814,2.10450842,16961.0,16960.0,1.74337834]
[1673178902947,2.10450842,16961.0,16960.0,1.37539334]
[1673178904258,1.58955719,16961.0,16960.0,0.00881447]
[1673178904511,2.17136141,16961.0,16960.0,0.00881447]
[1673178904772,1.87136141,16961.0,16960.0,0.00881447]
[1673178905054,1.89443501,16961.0,16960.0,0.00881447]
[1673178905863,2.19443501,16961.0,16960.0,0.00881447]
[1673178907461,0.6,16960.0,16957.0,0.04905992]
[1673178907756,0.59665605,16958.0,16957.0,0.04905992]
[1673178908025,0.9126606,16958.0,16957.0,0.04905992]
[1673178908290,0.95657729,16958.0,16956.0,0.10935539]
[1673178908560,2.08460569,16957.0,16956.0,0.10935539]
[1673178908823,2.01275115,16957.0,16956.0,0.10935539]
[1673178909093,2.04466784,16957.0,16956.0,0.10935539]
[1673178909872,2.04466784,16957.0,16956.0,0.10920539]
[1673178910597,2.18066784,16957.0,16956.0,0.10920539]
[1673178911107,2.18916784,16957.0,16956.0,0.10920539]
[1673178912407,2.18916784,16957.0,16956.0,0.00075455]
[1673178914246,3.07971772,16957.0,16956.0,0.00075455]
[1673178914468,3.05678312,16957.0,16956.0,0.00075455]
[1673178915003,3.66944372,16957.0,16956.0,0.00075455]
[1673178915263,2.77889384,16957.0,16956.0,0.00075455]
[1673178917395,2.24909469,16957.0,16956.0,0.00075455]
[1673178918472,3.39155444,16957.0,16956.0,0.00075455]
[1673178919004,2.86175529,16957.0,16956.0,0.12197322]
[1673178919252,2.24909469,16957.0,16956.0,0.12197322]
[1673178919736,2.58595657,16957.0,16956.0,0.12197322]
[1673178919991,2.24909469,16957.0,16955.0,0.000618]
[1673178920257,0.80115769,16956.0,16955.0,0.000618]
[1673178920526,2.87044069,16956.0,16955.0,0.000618]
[1673178920849,2.90585738,16956.0,16955.0,0.000618]
[1673178921040,2.90585738,16956.0,16955.0,0.12170929]
[1673178921806,3.04085738,16956.0,16955.0,0.12170929]
[1673178922078,3.04085738,16956.0,16955.0,0.000618]
[1673178923132,3.04085738,16956.0,16955.0,0.12170929]
[1673178924052,3.04085738,16956.0,16955.0,0.000618]
[1673178924298,3.30497771,16956.0,16955.0,0.000618]
[1673178924879,2.86461233,16956.0,16955.0,0.000618]
[1673178925126,2.86461233,16956.0,16955.0,0.12170929]
[1673178929117,3.30497771,16956.0,16955.0,0.12170929]
[1673178929625,3.04085738,16956.0,16955.0,0.12170929]
[1673178929860,3.30500701,16956.0,16955.0,0.12170929]
[1673178931111,3.04085738,16956.0,16955.0,0.12170929]
[1673178932344,3.30506548,16956.0,16955.0,0.12170929]
[1673178932846,3.04085738,16956.0,16955.0,0.12170929]
[1673178936105,2.68856507,16956.0,16955.0,0.12170929]
[1673178936638,3.04108441,16956.0,16955.0,0.12170929]
[1673178937150,2.68856507,16956.0,16955.0,0.12170929]
[1673178939279,2.24819969,16956.0,16955.0,0.12170929]
[1673178940336,2.24819969,16956.0,16955.0,0.12162506]
[1673178942838,2.77799884,16956.0,16955.0,0.12162506]
[1673178945088,2.24819969,16956.0,16955.0,0.12162506]
[1673178946870,2.84485338,16956.0,16955.0,0.12162506]
[1673178947116,1.94819969,16956.0,16955.0,0.71487631]
[1673178947385,1.912783,16956.0,16955.0,0.71487631]
[1673178947623,2.44378053,16956.0,16955.0,0.71487631]
[1673178948706,2.74378053,16956.0,16955.0,0.71487631]
[1673178952755,2.74378053,16956.0,16955.0,0.12162506]
[1673178957318,2.74349903,16956.0,16955.0,0.12162506]
[1673178957583,2.212783,16956.0,16955.0,0.12162506]
[1673178960640,2.212783,16956.0,16955.0,0.12150705]
[1673178961779,2.20888,16956.0,16955.0,0.12150705]
[1673178965318,2.73957828,16956.0,16955.0,0.12150705]
[1673178969359,2.20888,16956.0,16955.0,0.12150705]
[1673178973530,2.24429669,16956.0,16955.0,0.12150705]
[1673178979709,2.84095038,16956.0,16955.0,0.12150705]
[1673178981336,1.07166738,16956.0,16955.0,0.12150705]
[1673178981850,2.84095038,16956.0,16955.0,0.12150705]
[1673178985049,2.84095038,16956.0,16955.0,0.12139944]
[1673178988097,2.84095038,16956.0,16955.0,0.00030815]
[1673178988905,3.18401802,16956.0,16955.0,0.11003186]
[1673178989799,2.84095038,16956.0,16955.0,0.11003186]
[1673179003691,2.84087606,16956.0,16955.0,0.11003186]
[1673179022207,2.24422237,16956.0,16955.0,0.11003186]
[1673179027018,2.24422237,16956.0,16955.0,0.10994532]
[1673179028589,2.84158554,16956.0,16955.0,0.10994532]
[1673179029114,2.24422237,16956.0,16955.0,0.10994532]
[1673179049109,2.20880568,16956.0,16955.0,0.10994532]
[1673179050121,2.24422237,16956.0,16955.0,0.10994532]
[1673179050756,2.35695452,16956.0,16955.0,0.10994532]
[1673179051264,2.24422237,16956.0,16955.0,0.10994532]
[1673179051759,2.24422237,16956.0,16955.0,0.1098569]
[1673179062793,2.84174286,16956.0,16955.0,0.1098569]
[1673179063053,2.24422237,16956.0,16955.0,0.1098569]
[1673179063292,2.84174121,16956.0,16955.0,0.1098569]
[1673179063543,2.24422237,16956.0,16955.0,0.1098569]
[1673179065319,2.52761721,16956.0,16955.0,0.1098569]
[1673179073429,3.14027781,16956.0,16955.0,0.1098569]
[1673179073680,2.52761721,16956.0,16955.0,0.1098569]
[1673179074165,2.39261721,16956.0,16955.0,0.1098569]
[1673179074425,2.52861721,16956.0,16955.0,0.1098569]
[1673179074696,3.00527781,16956.0,16955.0,0.1098569]
[1673179074962,3.14127781,16956.0,16955.0,0.1098569]
[1673179075711,2.85788297,16956.0,16955.0,0.10977285]
[1673179077386,2.24522237,16956.0,16955.0,0.10977285]
[1673179077906,2.85788297,16956.0,16955.0,0.10977285]
[1673179078429,2.24522237,16956.0,16955.0,0.10977285]
[1673179084088,2.85788297,16956.0,16955.0,0.10977285]
[1673179084352,2.24522237,16956.0,16955.0,0.10977285]
[1673179085405,2.85788297,16956.0,16955.0,0.10977285]
[1673179085667,2.24522237,16956.0,16955.0,0.10977285]
[1673179087659,2.85788297,16956.0,16955.0,0.10977285]
[1673179088183,2.24522237,16956.0,16955.0,0.10977285]
[1673179088656,2.24522237,16956.0,16955.0,0.10939485]
[1673179092308,2.34979062,16956.0,16955.0,0.10939485]
[1673179093238,2.96245122,16956.0,16955.0,0.10939485]
[1673179094230,2.34979062,16956.0,16955.0,0.10939485]
[1673179095474,2.24522237,16956.0,16955.0,0.10939485]
[1673179100499,2.85788297,16956.0,16955.0,0.10939485]
[1673179101007,2.24522237,16956.0,16955.0,0.10939485]
[1673179110134,3.72949894,16956.0,16955.0,0.03627301]
[1673179110362,3.72949894,16956.0,16952.0,0.05594978]
[1673179110363,0.6,16955.0,16952.0,0.05594978]
[1673179110627,0.3,16953.0,16952.0,0.05594978]
[1673179110874,0.3,16953.0,16952.0,0.00645918]
[1673179110875,0.9076521,16953.0,16952.0,0.00645918]
[1673179111124,3.02116679,16953.0,16952.0,0.00645918]
[1673179111378,2.41351469,16953.0,16952.0,0.00645918]
[1673179111646,3.02116679,16953.0,16952.0,0.00645918]
[1673179111881,2.41351469,16953.0,16952.0,0.00645918]
[1673179113385,2.41351469,16953.0,16952.0,0.00639258]
[1673179113622,3.02116679,16953.0,16952.0,0.00639258]
[1673179114638,3.15716679,16953.0,16952.0,0.00639258]
[1673179115136,3.29316679,16953.0,16952.0,0.09751141]
[1673179115386,3.59881515,16953.0,16952.0,0.09751141]
[1673179116149,3.59881515,16953.0,16952.0,0.00639258]
[1673179119146,3.29881515,16953.0,16952.0,0.09751141]
[1673179119402,3.29881515,16953.0,16951.0,0.00474744]
[1673179119666,0.90411774,16952.0,16951.0,0.00474744]
[1673179119958,2.67381774,16952.0,16951.0,0.00474744]
[1673179120209,2.70923443,16952.0,16951.0,0.00474744]
[1673179121270,2.84523443,16952.0,16951.0,0.00474744]
[1673179121528,3.45076477,16952.0,16951.0,0.00474744]
[1673179121794,3.24929751,16952.0,16951.0,0.00474744]
[1673179122059,2.84523443,16952.0,16951.0,0.00474744]
[1673179123848,3.45076477,16952.0,16951.0,0.00474744]
[1673179124565,2.84523443,16952.0,16951.0,0.00474744]
[1673179125041,3.45076477,16952.0,16951.0,0.09285098]
[1673179125354,3.41534808,16952.0,16951.0,0.09285098]
[1673179125635,3.47699921,16952.0,16951.0,0.09285098]
[1673179126128,3.47699921,16952.0,16951.0,0.00474744]
[1673179126129,2.90688556,16952.0,16951.0,0.00474744]
[1673179126380,3.5124159,16952.0,16951.0,0.00474744]
[1673179126682,2.90688556,16952.0,16951.0,0.00474744]
[1673179127161,3.5124159,16952.0,16951.0,0.00474744]
[1673179128176,2.90688556,16952.0,16951.0,0.00474744]
[1673179128907,3.5124159,16952.0,16951.0,0.00474744]
[1673179129925,2.90688556,16952.0,16951.0,0.00474744]
[1673179130173,2.87146887,16952.0,16951.0,0.00474744]
[1673179131415,2.90688556,16952.0,16951.0,0.00474744]
[1673179135228,2.31126782,16952.0,16951.0,0.00474744]
[1673179135486,2.90688556,16952.0,16951.0,0.00474744]
[1673179136255,2.31126782,16952.0,16951.0,0.06854325]
[1673179136515,2.84028831,16952.0,16951.0,0.06854325]
[1673179136772,2.84028831,16952.0,16951.0,0.00474744]
[1673179137292,2.31126782,16952.0,16951.0,0.00474744]
[1673179141198,2.31126782,16952.0,16951.0,0.08670748]
[1673179141448,2.31126782,16952.0,16951.0,0.0865982]
[1673179142213,2.31126782,16952.0,16951.0,0.00463816]
[1673179142896,2.90688556,16952.0,16951.0,0.00463816]
[1673179143151,2.90688556,16952.0,16951.0,0.0865982]
[1673179144172,2.31126782,16952.0,16951.0,0.0865982]
[1673179144398,2.90688556,16952.0,16951.0,0.0865982]
[1673179146787,2.31126782,16952.0,16951.0,0.0865982]
[1673179151143,2.31126782,16952.0,16951.0,0.00463816]
[1673179151670,2.24961669,16952.0,16951.0,0.00463816]
[1673179153182,2.24961669,16952.0,16951.0,0.0865982]
[1673179156165,2.24961669,16952.0,16951.0,0.00463816]
[1673179157071,2.24961669,16952.0,16951.0,0.0865982]
[1673179160105,2.24961669,16952.0,16951.0,0.00463816]
[1673179161008,2.24961669,16952.0,16951.0,0.0865982]
[1673179162110,2.24961669,16952.0,16951.0,0.00463816]
[1673179163043,1.63557169,16952.0,16951.0,0.0865982]
[1673179164249,1.93557169,16952.0,16951.0,0.0865982]
[1673179165137,1.94407169,16952.0,16951.0,0.00463816]
[1673179169216,1.94407169,16952.0,16951.0,0.0865982]
[1673179170260,1.94407169,16952.0,16951.0,0.00463816]
[1673179171106,1.94407169,16952.0,16951.0,0.0865982]
[1673179173092,1.94407169,16952.0,16951.0,0.00463816]
[1673179174091,1.94407169,16952.0,16951.0,0.0865982]
[1673179175095,1.94407169,16952.0,16951.0,0.00463816]
[1673179176128,1.94407169,16952.0,16951.0,0.0865982]
[1673179176690,1.93713761,16952.0,16951.0,0.0865982]
[1673179177196,1.93713761,16952.0,16951.0,0.00463816]
[1673179182075,1.93713761,16952.0,16951.0,0.0865982]
[1673179182616,1.99878874,16952.0,16951.0,0.0865982]
[1673179182823,2.99878874,16952.0,16951.0,0.0865982]
[1673179183088,2.99878874,16952.0,16951.0,0.00463816]
[1673179192589,3.60431936,16952.0,16951.0,0.00463816]
[1673179192861,2.99878874,16952.0,16951.0,0.00463816]
[1673179193380,3.60431936,16952.0,16951.0,0.00463816]
[1673179193634,2.99878874,16952.0,16951.0,0.00463816]
[1673179196027,2.99878874,16952.0,16951.0,0.06842304]
[1673179196542,2.99878874,16952.0,16951.0,0.00463816]
[1673179201175,2.99878874,16952.0,16951.0,0.00455598]
[1673179201454,2.99272474,16952.0,16951.0,0.00455598]
[1673179201712,2.93107361,16952.0,16951.0,0.00455598]
[1673179202183,2.93107361,16952.0,16951.0,0.00222795]
[1673179202694,3.53660423,16952.0,16951.0,0.00222795]
[1673179203471,1.93107361,16952.0,16951.0,0.00222795]
[1673179205515,1.93107361,16952.0,16951.0,0.08418799]
[1673179205778,1.93107361,16952.0,16951.0,0.00299657]
[1673179207089,1.89565692,16952.0,16951.0,0.00299657]
[1673179207341,1.93107361,16952.0,16951.0,0.00299657]
[1673179208140,1.99272474,16952.0,16951.0,0.00299657]
[1673179209912,1.99272474,16952.0,16950.0,0.63321067]
[1673179210144,0.3085,16951.0,16950.0,0.63321067]
[1673179210359,2.078305,16951.0,16950.0,0.63321067]
[1673179210576,2.11372169,16951.0,16950.0,0.58451624]
[1673179211522,2.24972169,16951.0,16950.0,0.58451624]
[1673179211782,2.24972169,16951.0,16950.0,0.66386617]
[1673179230363,2.24972169,16951.0,16950.0,0.66380573]
[1673179230964,2.24972169,16951.0,16950.0,0.66404634]
[1673179231269,2.24972169,16951.0,16950.0,0.66380573]
[1673179231789,2.214305,16951.0,16950.0,0.66380573]
[1673179233303,2.214305,16951.0,16950.0,0.66404634]
[1673179233844,2.214305,16951.0,16950.0,0.66380573]
[1673179234627,2.214305,16951.0,16950.0,0.66404634]
[1673179235146,2.214305,16951.0,16950.0,0.66380573]
[1673179235920,2.214305,16951.0,16950.0,0.66404634]
[1673179236184,2.81144162,16951.0,16950.0,0.66404634]
[1673179236434,2.214305,16951.0,16950.0,0.66380573]
[1673179250959,2.214305,16951.0,16950.0,0.6637065]
[1673179253203,2.214305,16951.0,16950.0,0.65162632]
[1673179274059,2.214305,16951.0,16950.0,0.65155349]
[1673179282383,2.24972169,16951.0,16950.0,0.65155349]
[1673179298714,2.24972169,16951.0,16950.0,0.65146423]
[1673179303491,2.24972169,16951.0,16950.0,0.64630326]
[1673179317116,2.24972169,16951.0,16950.0,1.01428826]
[1673179317460,2.24972169,16951.0,16950.0,0.64630326]
[1673179320080,2.24972169,16951.0,16950.0,1.01428826]
[1673179320576,2.214305,16951.0,16950.0,1.01428826]
[1673179323569,2.8114709,16951.0,16950.0,1.01428826]
[1673179323828,2.8114709,16951.0,16950.0,0.64630326]
[1673179324556,2.8114709,16951.0,16950.0,0.64618881]
[1673179327587,2.214305,16951.0,16950.0,0.64618881]
[1673179327843,2.81137969,16951.0,16950.0,0.64618881]
[1673179334385,2.81137969,16951.0,16950.0,1.01417381]
[1673179334633,2.81137969,16951.0,16950.0,0.64618881]
[1673179338410,2.81137969,16951.0,16950.0,1.01417381]
[1673179338718,2.81137969,16951.0,16950.0,0.64618881]
[1673179343628,2.214305,16951.0,16950.0,0.64618881]
[1673179349573,2.214305,16951.0,16950.0,0.6461193]
[1673179352939,2.24972169,16951.0,16950.0,0.6461193]
[1673179354445,2.50182955,16951.0,16950.0,0.6461193]
[1673179354957,2.24972169,16951.0,16950.0,0.6461193]
[1673179371408,2.24972169,16951.0,16950.0,0.64604712]
[1673179372425,2.2496541,16951.0,16950.0,0.64604712]
[1673179385732,2.84678653,16951.0,16950.0,0.64604712]
[1673179395972,2.84678653,16951.0,16950.0,0.64594907]
[1673179404269,2.81136984,16951.0,16950.0,0.64594907]
[1673179405356,2.84678653,16951.0,16950.0,0.64594907]
[1673179406655,2.84678653,16951.0,16950.0,0.64623288]
[1673179407121,2.84678653,16951.0,16950.0,0.64594907]
[1673179411145,2.84678653,16951.0,16950.0,1.01393407]
[1673179411388,2.84678653,16951.0,16950.0,1.01421788]
[1673179413144,2.84678653,16951.0,16950.0,0.64623288]
[1673179415115,2.84678653,16951.0,16950.0,1.01421788]
[1673179416351,2.84678653,16951.0,16950.0,1.16854982]
[1673179416596,2.84678653,16951.0,16950.0,1.82152825]
[1673179416597,2.21423741,16951.0,16950.0,1.82152825]
[1673179418150,2.07823741,16951.0,16950.0,1.82152825]
[1673179418411,2.21323741,16951.0,16950.0,1.82252825]